bitfinex-derivatives/quotes_SOLF0:USTF0_20250111
["timestamp","ask_amount","ask_price","bid_price","bid_amount"]
[1736600273068,7.09088946,187.01,187.0,2.675]
[1736600275968,7.09088946,187.03,187.02,2.6747]
[1736600276765,1.5531,187.08,187.04,2.6744]
[1736600276966,1.5531,187.08,186.99,7.09088946]
[1736600276967,7.09088946,187.05,186.99,7.09088946]
[1736600277361,7.09088946,187.05,187.04,2.6744]
[1736600280370,7.09088946,187.08,187.07,2.6738]
[1736600286779,2.6732,187.12,187.09,2.6736]
[1736600286980,7.09088946,187.1,187.09,2.6736]
[1736600288582,9.76438946,187.1,187.01,1.6818]
[1736600288776,7.09088946,187.05,187.0,1.6802]
[1736600290179,7.09088946,187.05,187.04,2.6744]
[1736600291089,7.09088946,187.05,186.96,1.6172]
[1736600291285,7.09088946,187.01,186.96,1.6172]
[1736600291478,1.5909,187.12,187.0,2.6749]
[1736600291779,7.09088946,187.04,186.97,7.09088946]
[1736600292186,7.09088946,187.04,187.03,2.6745]
[1736600295991,7.09088946,187.06,186.99,7.09088946]
[1736600296192,7.09088946,187.06,187.04,2.6743]
[1736600300595,7.09088946,187.06,187.03,2.6745]
[1736600300793,7.09088946,187.04,187.03,2.6745]
[1736600321724,7.09088946,187.04,186.96,7.38395954]
[1736600321924,7.09088946,187.04,187.02,2.6746]
[1736600330726,7.09088946,187.04,186.93,7.38395954]
[1736600330928,7.09088946,187.0,186.93,29.27403387]
[1736600332033,7.09088946,187.0,186.93,7.09088946]
[1736600332236,7.09088946,187.0,186.98,2.6752]
[1736600334939,2.6747,187.02,186.98,2.6752]
[1736600335127,7.09088946,187.0,186.98,2.6752]
[1736600337636,7.09088946,187.0,186.91,7.09088946]
[1736600337837,2.6748,187.01,186.91,7.09088946]
[1736600337838,7.09088946,186.98,186.91,7.09088946]
[1736600338536,7.09088946,186.98,186.95,2.6756]
[1736600343253,7.09088946,186.96,186.89,1.5281]
[1736600343442,7.09088946,186.94,186.91,2.6761]
[1736600344149,7.09088946,186.94,186.92,2.6761]
[1736600344446,7.09088946,186.94,186.89,1.5281]
[1736600345146,7.09088946,186.94,186.87,36.90909048]
[1736600346149,7.09088946,186.92,186.89,2.6764]
[1736600347351,7.09088946,186.92,186.91,2.6762]
[1736600348351,7.09088946,186.92,186.87,7.09088946]
[1736600348655,7.09088946,186.92,186.9,2.6763]
[1736600350254,7.09088946,186.92,186.89,2.6765]
[1736600350551,7.09088946,186.9,186.89,2.6765]
[1736600352850,7.09088946,186.9,186.85,7.09088946]
[1736600353054,7.09088946,186.9,186.88,2.6766]
[1736600354457,12.47088946,186.9,186.78,44.31127198]
[1736600354657,7.09088946,186.83,186.78,44.31127198]
[1736600354851,5.38,186.9,186.78,51.40216144]
[1736600355048,7.09088946,186.85,186.83,2.6774]
[1736600356154,7.09088946,186.85,186.78,51.40216144]
[1736600356155,7.09088946,186.85,186.78,36.92731244]
[1736600356354,7.09088946,186.85,186.82,2.6774]
[1736600356945,2.6768,186.87,186.82,2.6774]
[1736600357346,7.09088946,186.85,186.82,2.6774]
[1736600362058,7.09088946,186.87,186.85,2.6771]
[1736600362460,7.09088946,186.87,186.81,7.09088946]
[1736600362761,7.09088946,186.87,186.84,2.6772]
[1736600363261,2.6765,186.89,186.84,2.6772]
[1736600363559,7.09088946,186.87,186.84,2.6772]
[1736600363966,7.09088946,186.9,186.87,2.6768]
[1736600365064,7.09088946,186.9,186.88,2.6766]
[1736600369462,2.6757,186.95,186.91,2.6762]
[1736600369658,7.09088946,186.92,186.91,2.6762]
[1736600376970,2.6757,186.95,186.91,2.6762]
[1736600377471,7.09088946,186.92,186.91,2.6762]
[1736600377865,149.22061205,187.07,186.88,7.09088946]
[1736600378063,7.09088946,186.95,186.88,7.09088946]
[1736600378266,7.09088946,186.95,186.89,3.1104]
[1736600379066,7.09088946,186.95,186.94,2.6758]
[1736600381874,7.09088946,186.97,186.9,7.09088946]
[1736600382074,7.09088946,186.97,186.95,2.6756]
[1736600382275,7.09088946,186.97,186.91,1.542]
[1736600382774,7.09088946,186.97,186.96,2.6755]
[1736600383372,2.6747,187.02,186.92,7.09088946]
[1736600383580,7.09088946,186.98,186.97,2.6753]
[1736600384478,7.09088946,186.98,186.96,2.6755]
[1736600389082,7.09088946,186.98,186.97,2.6754]
[1736600400381,7.09088946,187.0,186.98,2.6752]
[1736600400580,7.09088946,187.0,186.94,7.09088946]
[1736600400888,4.8675,187.06,187.01,2.6747]
[1736600400889,7.09088946,187.03,187.01,2.6747]
[1736600401280,7.09088946,187.03,186.96,7.09088946]
[1736600401485,7.09088946,187.01,186.98,2.6751]
[1736600403388,7.09088946,187.01,186.99,2.6751]
[1736600403691,7.09088946,187.01,186.95,7.09088946]
[1736600405091,7.09088946,187.01,187.0,2.675]
[1736600405687,2.6743,187.05,187.01,2.6747]
[1736600405887,7.09088946,187.02,187.01,2.6747]
[1736600406888,7.09088946,187.02,186.95,7.09088946]
[1736600407089,7.09088946,187.01,186.95,7.09088946]
[1736600407391,2.6745,187.04,186.95,7.09088946]
[1736600407583,7.09088946,187.02,186.95,7.09088946]
[1736600408083,7.09088946,187.03,186.95,7.09088946]
[1736600409090,7.09088946,187.03,187.01,2.6748]
[1736600410992,7.09088946,187.02,187.01,2.6748]
[1736600411196,2.6743,187.05,187.01,2.6748]
[1736600411493,7.09088946,187.03,187.01,2.6748]
[1736600412995,2.6743,187.05,187.01,2.6748]
[1736600413590,7.09088946,187.04,187.01,2.6748]
[1736600415188,7.09088946,187.08,187.01,7.09088946]
[1736600415786,2.6736,187.1,187.05,2.6741]
[1736600416004,7.09088946,187.08,187.01,7.09088946]
[1736600416597,7.09088946,187.08,187.03,2.6745]
[1736600416791,7.09088946,187.08,187.01,7.09088946]
[1736600417592,7.09088946,187.08,187.07,2.6739]
[1736600419191,2.6734,187.11,187.07,2.6739]
[1736600419396,7.09088946,187.1,187.07,2.6739]
[1736600419693,5.36,187.18,186.97,4.6478]
[1736600419694,7.09088946,187.08,186.97,4.6478]
[1736600419997,7.09088946,187.06,187.01,7.09088946]
[1736600420399,7.09088946,187.06,187.03,2.6744]
[1736600422404,7.09088946,187.06,187.01,7.09088946]
[1736600422701,7.09088946,187.06,187.04,2.6744]
[1736600422902,7.09088946,187.06,187.01,7.09088946]
[1736600423101,7.09088946,187.06,187.03,2.6744]
[1736600423401,7.09088946,187.06,187.01,7.09088946]
[1736600423801,7.09088946,187.08,187.04,2.6743]
[1736600425297,7.09088946,187.08,187.05,2.6742]
[1736600427596,7.09088946,187.08,187.01,7.09088946]
[1736600427803,9.76468946,187.08,187.04,2.6743]
[1736600428405,7.09088946,187.06,186.97,4.6478]
[1736600428705,7.09088946,187.03,186.97,11.73868946]
[1736600429603,7.09088946,187.03,187.01,2.6748]
[1736600431904,7.09088946,187.05,187.01,2.6748]
[1736600433707,4.7929,187.12,187.01,2.6748]
[1736600433708,2.6737,187.09,187.05,2.6742]
[1736600433907,7.09088946,187.07,187.05,2.6742]
[1736600434407,7.09088946,187.07,187.01,7.09088946]
[1736600434612,7.09088946,187.07,187.04,2.6743]
[1736600436005,7.09088946,187.07,187.05,2.6742]
[1736600441911,7.09088946,187.07,187.06,2.6741]
[1736600442308,7.09088946,187.1,187.03,7.09088946]
[1736600442809,7.09088946,187.11,187.05,7.09088946]
[1736600443512,1.6162,187.12,187.05,7.09088946]
[1736600443714,8.70708946,187.12,187.07,7.09088946]
[1736600444516,8.70708946,187.12,187.09,2.6736]
[1736600444814,8.70708946,187.12,187.07,7.09088946]
[1736600445013,7.09088946,187.12,187.07,7.09088946]
[1736600447215,7.09088946,187.12,187.09,2.6736]
[1736600447917,7.09088946,187.12,187.07,7.09088946]
[1736600448109,7.09088946,187.12,187.1,2.6735]
[1736600448514,9.76388946,187.14,187.1,2.6735]
[1736600449918,3.2062,187.17,187.13,2.6731]
[1736600449919,2.6727,187.16,187.13,2.6731]
[1736600450117,7.09088946,187.16,187.13,2.6731]
[1736600451215,7.64352662,187.22,187.15,2.6727]
[1736600451417,7.09088946,187.17,187.15,2.6727]
[1736600455517,3.1482,187.22,187.11,7.09088946]
[1736600455718,7.09088946,187.18,187.16,2.6726]
[1736600457522,2.6721,187.2,187.13,7.09088946]
[1736600457722,9.76298946,187.2,187.17,2.6725]
[1736600460724,2.6716,187.24,187.17,7.09088946]
[1736600460925,7.09088946,187.23,187.17,7.09088946]
[1736600461115,5.36,187.29,187.1,4.8364]
[1736600461116,7.09088946,187.21,187.15,7.09088946]
[1736600461317,7.09088946,187.21,187.16,2.6725]
[1736600461830,7.09088946,187.19,187.16,2.6725]
[1736600462830,7.09088946,187.19,187.13,2.673]
[1736600463023,7.09088946,187.17,187.11,7.09088946]
[1736600463628,9.76338946,187.17,187.13,2.673]
[1736600464723,7.09088946,187.17,187.13,2.673]
[1736600466520,7.09088946,187.17,187.11,7.09088946]
[1736600466729,7.09088946,187.17,187.14,2.6729]
[1736600467220,7.09088946,187.17,187.15,2.6728]
[1736600467425,7.09088946,187.19,187.13,7.09088946]
[1736600468021,7.09088946,187.19,187.16,2.6726]
[1736600468226,9.76318946,187.19,187.16,2.6726]
[1736600468426,9.76318946,187.19,187.13,7.09088946]
[1736600468626,9.76318946,187.19,187.15,2.6728]
[1736600469130,2.6724,187.18,187.15,2.6728]
[1736600469831,9.76338946,187.17,187.13,2.673]
[1736600470933,7.09088946,187.17,187.11,7.09088946]
[1736600471434,9.76318946,187.19,187.14,2.6728]
[1736600472331,9.76318946,187.19,187.15,2.6728]
[1736600473835,7.09088946,187.19,187.13,7.09088946]
[1736600474031,10.89632402,187.27,187.15,7.09088946]
[1736600474232,7.09088946,187.23,187.17,7.09088946]
[1736600475132,7.09088946,187.23,187.2,2.672]
[1736600476734,7.09088946,187.23,187.17,7.09088946]
[1736600477037,7.09088946,187.23,187.19,2.6722]
[1736600477343,2.6722,187.19,187.14,2.6728]
[1736600477537,9.76308946,187.19,187.13,7.09088946]
[1736600477940,2.6724,187.18,187.14,2.6729]
[1736600478742,9.76318946,187.19,187.15,2.6728]
[1736600482534,9.76318946,187.19,187.13,7.09088946]
[1736600482535,7.09088946,187.19,187.16,2.6727]
[1736600482739,7.09088946,187.21,187.15,7.09088946]
[1736600483241,7.09088946,187.21,187.18,2.6722]
[1736600484938,7.09088946,187.23,187.18,2.6722]
[1736600485146,9.76288946,187.21,187.17,2.6725]
[1736600488040,9.76288946,187.21,187.13,2.673]
[1736600488041,2.6723,187.19,187.13,2.673]
[1736600488341,2.6723,187.19,187.14,7.09088946]
[1736600489448,2.6723,187.19,187.15,2.6727]
[1736600490247,7.09088946,187.21,187.14,7.09088946]
[1736600491143,7.09088946,187.21,187.18,2.6724]
[1736600491350,7.09088946,187.21,187.14,7.09088946]
[1736600492841,2.6718,187.22,187.14,7.09088946]
[1736600493040,9.76268946,187.22,187.16,7.09088946]
[1736600494348,9.76268946,187.22,187.18,2.6723]
[1736600495446,9.76268946,187.22,187.19,2.6722]
[1736600496144,16.24374835,187.27,187.16,7.09088946]
[1736600496348,7.61888298,187.27,187.2,7.09088946]
[1736600496546,7.61888298,187.27,187.22,7.09088946]
[1736600497346,37.2933805,187.28,187.24,2.6714]
[1736600498148,37.2933805,187.28,187.25,2.6714]
[1736600499454,2.6711,187.27,187.24,2.6715]
[1736600499957,9.76188946,187.28,187.24,2.6715]
[1736600500451,9.76188946,187.28,187.25,2.6714]
[1736600502651,7.09088946,187.26,187.12,7.38395954]
[1736600502850,7.09088946,187.21,187.17,2.6724]
[1736600503051,7.09088946,187.19,187.12,7.38395954]
[1736600503249,7.09088946,187.17,187.14,2.6728]
[1736600504452,7.09088946,187.17,187.15,2.6728]
[1736600505249,7.09088946,187.17,187.14,2.6729]
[1736600505556,7.09088946,187.17,187.11,7.09088946]
[1736600505747,7.09088946,187.17,187.13,2.673]
[1736600506555,7.09088946,187.17,187.14,2.6729]
[1736600512170,7.09088946,187.17,187.15,2.6728]
[1736600516180,9.76318946,187.19,187.15,2.6728]
[1736600520680,2.6718,187.22,187.18,2.6722]
[1736600520885,3.0685,187.24,187.15,7.09088946]
[1736600521085,7.09088946,187.23,187.15,7.09088946]
[1736600521678,7.09088946,187.23,187.2,2.6721]
[1736600521883,7.09088946,187.23,187.15,7.09088946]
[1736600522084,7.09088946,187.23,187.1,3.206]
[1736600522279,9.76268946,187.23,187.18,2.6722]
[1736600522687,9.76268946,187.23,187.15,7.09088946]
[1736600522887,7.09088946,187.21,187.15,7.09088946]
[1736600524188,7.09088946,187.21,187.19,2.6722]
[1736600526391,9.76288946,187.21,187.17,2.6724]
[1736600526591,7.09088946,187.19,187.13,7.09088946]
[1736600526782,3.0685,187.24,187.1,3.206]
[1736600526988,9.76358946,187.17,187.13,2.673]
[1736600528789,7.09088946,187.15,187.12,2.6732]
[1736600529385,7.09088946,187.15,187.09,7.09088946]
[1736600529386,7.09088946,187.15,187.11,2.6734]
[1736600530889,7.09088946,187.15,187.12,2.6732]
[1736600531190,2.6727,187.16,187.12,2.6732]
[1736600531690,7.09088946,187.17,187.15,2.6728]
[1736600531886,7.09088946,187.19,187.15,2.6728]
[1736600532591,9.76318946,187.19,187.15,2.6728]
[1736600533889,2.6723,187.19,187.15,2.6728]
[1736600534090,7.09088946,187.18,187.15,2.6728]
[1736600535998,2.6723,187.19,187.15,2.6728]
[1736600536189,9.76318946,187.19,187.15,2.6728]
[1736600536788,7.09088946,187.18,187.12,7.09088946]
[1736600536993,2.6721,187.2,187.16,2.6727]
[1736600537193,7.09088946,187.18,187.16,2.6727]
[1736600542492,2.6721,187.2,187.16,2.6727]
[1736600542698,7.09088946,187.18,187.16,2.6727]
[1736600544902,7.09088946,187.18,187.17,2.6725]
[1736600547503,8.4285,187.24,187.14,7.09088946]
[1736600547504,3.0685,187.24,187.14,7.09088946]
[1736600547698,7.09088946,187.21,187.14,7.09088946]
[1736600548098,7.09088946,187.21,187.2,2.6721]
[1736600549196,3.0685,187.24,187.18,7.09088946]
[1736600549395,8.63398946,187.24,187.18,7.09088946]
[1736600549703,7.63869969,187.26,187.23,2.6715]
[1736600550004,7.09088946,187.25,187.23,2.6715]
[1736600550900,7.09088946,187.25,187.22,2.6718]
[1736600552305,9.76228946,187.25,187.22,2.6718]
[1736600553206,7.09088946,187.25,187.22,2.6718]
[1736600554905,9.76228946,187.25,187.22,2.6718]
[1736600555710,7.09088946,187.23,187.2,2.672]
[1736600557411,7.09088946,187.23,187.16,7.09088946]
[1736600557607,7.09088946,187.21,187.18,2.6724]
[1736600560014,7.09088946,187.21,187.15,1.6389]
[1736600560215,7.09088946,187.21,187.19,2.6722]
[1736600565020,7.09088946,187.21,187.16,7.09088946]
[1736600565222,7.09088946,187.24,187.18,7.09088946]
[1736600565625,7.09088946,187.24,187.23,2.6716]
[1736600566525,7.09088946,187.24,187.22,2.6718]
[1736600570628,9.76248946,187.24,187.19,2.6721]
[1736600570830,9.76248946,187.24,187.18,7.09088946]
[1736600571831,9.76248946,187.24,187.21,2.6719]
[1736600573621,7.09088946,187.24,187.22,2.6717]
[1736600575428,16.18701545,187.29,187.18,7.09088946]
[1736600575626,7.09088946,187.26,187.24,2.6715]
[1736600577327,7.09088946,187.26,187.2,7.09088946]
[1736600577534,7.09088946,187.28,187.25,2.6714]
[1736600578629,7.64015034,187.32,187.22,7.09088946]
[1736600578831,7.09088946,187.3,187.22,7.09088946]
[1736600579133,7.09088946,187.28,187.22,7.09088946]
[1736600579333,7.09088946,187.28,187.26,2.6712]
[1736600579732,7.09088946,187.28,187.22,7.09088946]
[1736600580033,7.09088946,187.28,187.25,2.6713]
[1736600583430,7.64015034,187.33,187.24,7.09088946]
[1736600583633,7.64015034,187.33,187.26,7.09088946]
[1736600583634,7.09088946,187.32,187.26,7.09088946]
[1736600584225,7.09088946,187.32,187.29,2.6707]
[1736600592342,7.09088946,187.32,187.26,7.09088946]
[1736600592343,148.5481464,187.44,187.3,7.09088946]
[1736600592543,148.5481464,187.44,187.4,7.09088946]
[1736600593041,148.5481464,187.44,187.42,7.09088946]
[1736600593439,148.5481464,187.44,187.4,7.09088946]
[1736600593842,2.6686,187.45,187.4,7.09088946]
[1736600594039,7.09088946,187.47,187.4,7.09088946]
[1736600594243,7.09088946,187.47,187.41,2.6691]
[1736600594244,2.6684,187.46,187.41,2.6691]
[1736600594434,2.6684,187.46,187.4,7.09088946]
[1736600595648,2.6686,187.45,187.4,9.76008946]
[1736600599042,7.09088946,187.45,187.38,7.09088946]
[1736600599249,7.09088946,187.41,187.35,7.09088946]
[1736600599645,9.75998946,187.41,187.37,2.6697]
[1736600602249,2.6693,187.4,187.31,8.7143]
[1736600602442,2.6693,187.4,187.34,7.09088946]
[1736600602840,2.6693,187.4,187.35,2.6698]
[1736600603044,7.09088946,187.41,187.34,7.09088946]
[1736600603248,9.75998946,187.41,187.34,7.09088946]
[1736600604151,9.75998946,187.41,187.36,2.6698]
[1736600604542,9.75998946,187.41,187.34,7.09088946]
[1736600604543,2.6693,187.4,187.34,7.09088946]
[1736600604744,7.09088946,187.37,187.31,1.6775]
[1736600604950,7.09088946,187.39,187.32,7.09088946]
[1736600606352,9.76038946,187.39,187.34,2.6701]
[1736600606653,7.09088946,187.39,187.32,7.09088946]
[1736600606852,7.09088946,187.37,187.32,7.09088946]
[1736600607255,9.76058946,187.37,187.33,2.6702]
[1736600607555,9.76058946,187.37,187.32,7.09088946]
[1736600607556,7.09088946,187.37,187.32,7.09088946]
[1736600608055,7.09088946,187.37,187.3,7.09088946]
[1736600609047,2.6698,187.36,187.32,2.6704]
[1736600611457,2.6698,187.36,187.3,7.09088946]
[1736600611659,9.76058946,187.37,187.33,2.6702]
[1736600614159,2.6704,187.32,187.29,2.6707]
[1736600614361,7.09088946,187.33,187.29,2.6707]
[1736600614560,7.09088946,187.33,187.27,7.09088946]
[1736600615961,2.6704,187.32,187.26,8.71888946]
[1736600616756,2.6704,187.32,187.28,2.6708]
[1736600616957,7.09088946,187.31,187.25,7.09088946]
[1736600617263,2.6708,187.3,187.25,7.09088946]
[1736600617459,2.6708,187.3,187.26,2.6712]
[1736600617661,2.6708,187.3,187.25,7.09088946]
[1736600619065,7.09088946,187.31,187.25,7.09088946]
[1736600619866,7.09088946,187.31,187.27,2.671]
[1736600625863,2.6707,187.3,187.27,2.671]
[1736600626370,9.76168946,187.29,187.26,2.6712]
[1736600626570,9.76168946,187.29,187.22,7.09088946]
[1736600627167,7.09088946,187.29,187.24,2.6715]
[1736600627372,2.671,187.28,187.24,2.6715]
[1736600628473,2.671,187.28,187.25,2.6714]
[1736600629269,7.09088946,187.29,187.17,8.6631]
[1736600629476,7.09088946,187.27,187.21,7.09088946]
[1736600631071,7.09088946,187.27,187.24,2.6714]
[1736600633274,7.09088946,187.27,187.21,7.09088946]
[1736600633477,7.09088946,187.27,187.25,2.6713]
[1736600633873,7.09088946,187.27,187.21,7.09088946]
[1736600634176,7.09088946,187.27,187.26,2.6712]
[1736600634375,3.1736,187.33,187.23,7.09088946]
[1736600634573,7.09088946,187.31,187.29,2.6707]
[1736600636471,7.09088946,187.31,187.3,2.6707]
[1736600636777,7.09088946,187.34,187.27,7.09088946]
[1736600637679,7.09088946,187.34,187.29,2.6708]
[1736600637984,7.09088946,187.34,187.27,7.09088946]
[1736600638178,7.09088946,187.32,187.27,7.09088946]
[1736600638480,7.09088946,187.34,187.27,7.09088946]
[1736600639073,7.09088946,187.34,187.31,2.6704]
[1736600641281,2.67,187.35,187.31,2.6704]
[1736600641478,9.76088946,187.35,187.31,2.6704]
[1736600643574,9.76088946,187.35,187.29,7.09088946]
[1736600643780,7.09088946,187.35,187.32,2.6704]
[1736600650486,7.09088946,187.35,187.33,2.6702]
[1736600653082,14.73708496,187.39,187.36,2.6698]
[1736600653482,7.09088946,187.39,187.36,2.6698]
[1736600654083,9.76028946,187.39,187.36,2.6698]
[1736600659187,2.6693,187.4,187.37,2.6697]
[1736600661788,2.669,187.42,187.38,2.6695]
[1736600661986,7.09088946,187.41,187.38,2.6695]
[1736600663796,3.1224,187.45,187.37,7.09088946]
[1736600663992,2.6688,187.44,187.4,2.6691]
[1736600664198,9.75968946,187.44,187.4,2.6691]
[1736600664893,7.09088946,187.44,187.37,7.09088946]
[1736600665198,7.09088946,187.46,187.39,7.09088946]
[1736600665600,9.75928946,187.46,187.42,2.6689]
[1736600665800,9.75928946,187.46,187.39,7.09088946]
[1736600666000,7.09088946,187.46,187.39,7.09088946]
[1736600666190,7.09088946,187.46,187.41,2.6691]
[1736600666392,7.09088946,187.46,187.39,7.09088946]
[1736600667003,9.75928946,187.46,187.42,2.6689]
[1736600670397,2.6682,187.48,187.44,2.6687]
[1736600670601,9.75908946,187.48,187.44,2.6687]
[1736600673000,4.2027,187.5,187.46,2.6683]
[1736600674303,2.6679,187.5,187.46,2.6683]
[1736600678106,7.09088946,187.47,187.42,7.09088946]
[1736600678301,7.09088946,187.47,187.4,7.09088946]
[1736600679007,2.6686,187.45,187.42,2.6689]
[1736600679203,2.6686,187.45,187.3,29.76696968]
[1736600679510,2.6686,187.45,187.42,2.6689]
[1736600685315,2.6684,187.46,187.42,2.6689]
[1736600689525,2.6686,187.45,187.42,2.6689]
[1736600694327,2.6684,187.46,187.42,2.6689]
[1736600695823,7.09088946,187.47,187.31,39.94896968]
[1736600696128,7.09088946,187.45,187.31,39.94896968]
[1736600696329,7.09088946,187.45,187.37,7.09088946]
[1736600696531,2.6691,187.41,187.37,9.76038946]
[1736600697223,2.6691,187.41,187.38,2.6695]
[1736600697824,7.09088946,187.43,187.34,7.09088946]
[1736600698129,7.09088946,187.41,187.34,7.09088946]
[1736600699231,7.09088946,187.41,187.34,9.76088946]
[1736600699232,2.6695,187.39,187.34,9.76088946]
[1736600699821,2.6695,187.39,187.34,2.67]
[1736600700531,9.76038946,187.39,187.34,2.67]
[1736600702424,9.76038946,187.39,187.33,7.09088946]
[1736600702732,9.76038946,187.39,187.35,2.6699]
[1736600704331,7.09088946,187.37,187.28,41.26851907]
[1736600704534,7.09088946,187.37,187.3,7.09088946]
[1736600705737,9.76068946,187.37,187.32,2.6703]
[1736600706641,9.76068946,187.37,187.3,7.09088946]
[1736600706839,9.76068946,187.37,187.33,2.6702]
[1736600711342,2.6698,187.36,187.33,2.6702]
[1736600716643,7.09088946,187.35,187.28,41.26851907]
[1736600716843,7.09088946,187.33,187.3,2.6707]
[1736600717544,9.76118946,187.33,187.3,2.6707]
[1736600717742,7.09088946,187.33,187.3,2.6707]
[1736600724952,2.6704,187.32,187.29,2.6708]
[1736600725356,7.09088946,187.33,187.27,11.49898336]
[1736600725551,2.6705,187.32,187.27,11.49898336]
[1736600727251,2.6705,187.32,187.29,2.6708]
[1736600727547,7.09088946,187.34,187.27,11.49898336]
[1736600727753,2.6705,187.31,187.28,2.6709]
[1736600735061,2.6707,187.3,187.27,7.0791939]
[1736600735260,7.09088946,187.32,187.2,71.99803934]
[1736600735261,7.09088946,187.32,187.25,7.09088946]
[1736600735763,7.09088946,187.32,187.25,9.76228946]
[1736600736260,2.6709,187.29,187.25,9.76228946]
[1736600738059,2.6709,187.29,187.25,2.6714]
[1736600738363,2.6709,187.29,187.25,9.76228946]
[1736600739065,2.6709,187.29,187.25,7.09088946]
[1736600739255,2.6709,187.29,187.26,2.6712]
[1736600740360,7.09088946,187.3,187.21,1.5363]
[1736600740569,7.09088946,187.28,187.22,7.09088946]
[1736600741259,2.6714,187.25,187.22,9.76268946]
[1736600742464,2.6714,187.25,187.22,2.6718]
[1736600742869,7.09088946,187.26,187.21,1.5363]
[1736600743063,2.6715,187.24,187.21,2.6719]
[1736600743361,2.6715,187.24,187.2,7.09088946]
[1736600743566,7.09088946,187.26,187.19,2.6721]
[1736600743763,2.6717,187.23,187.19,2.6721]
[1736600744161,2.6717,187.23,187.18,7.09088946]
[1736600744365,2.6717,187.23,187.2,2.6721]
[1736600744566,9.76248946,187.24,187.2,2.6721]
[1736600745971,2.6717,187.23,187.19,2.6722]
[1736600750573,2.6718,187.22,187.19,2.6722]
[1736600751470,9.76268946,187.22,187.19,2.6722]
[1736600752365,9.76268946,187.22,187.18,2.6723]
[1736600752674,2.6718,187.22,187.16,8.67068946]
[1736600752875,9.76238946,187.24,187.2,2.672]
[1736600753863,2.6717,187.23,187.2,2.672]
[1736600757672,2.6717,187.23,187.18,7.09088946]
[1736600757874,2.6717,187.23,187.19,2.6722]
[1736600758578,2.6717,187.23,187.18,7.09088946]
[1736600758579,2.672,187.21,187.16,1.5798]
[1736600758768,7.09088946,187.22,187.15,7.09088946]
[1736600760174,7.09088946,187.2,187.15,7.09088946]
[1736600760373,7.09088946,187.18,187.11,1.6018]
[1736600760681,2.6731,187.13,187.09,2.6736]
[1736600760978,7.09088946,187.12,187.08,7.44174242]
[1736600761370,7.09088946,187.12,187.08,10.11554242]
[1736600761974,7.09088946,187.12,187.08,2.6738]
[1736600762574,7.09088946,187.14,187.06,7.09088946]
[1736600762778,7.09088946,187.14,187.1,2.6735]
[1736600762981,7.09088946,187.17,187.1,7.09088946]
[1736600763282,7.09088946,187.17,187.12,2.6732]
[1736600763885,9.76348946,187.17,187.12,2.6732]
[1736600764289,7.09088946,187.17,187.13,2.6731]
[1736600764585,7.09088946,187.2,187.12,7.09088946]
[1736600764785,7.09088946,187.2,187.16,2.6727]
[1736600766189,9.76298946,187.2,187.16,2.6727]
[1736600769889,2.672,187.21,187.17,2.6725]
[1736600770087,9.76288946,187.21,187.17,2.6725]
[1736600771189,7.09088946,187.21,187.17,2.6725]
[1736600771386,2.6721,187.2,187.17,2.6725]
[1736600773988,7.09088946,187.21,187.15,7.09088946]
[1736600774290,7.09088946,187.23,187.17,7.09088946]
[1736600775287,9.76258946,187.23,187.19,2.6721]
[1736600775988,9.76258946,187.23,187.17,7.09088946]
[1736600776293,7.09088946,187.23,187.2,2.6721]
[1736600776593,2.6716,187.24,187.2,2.672]
[1736600776793,2.6716,187.24,187.19,7.09088946]
[1736600776995,9.76198946,187.27,187.21,7.09088946]
[1736600777191,7.09088946,187.29,187.25,2.6713]
[1736600777794,7.09088946,187.27,187.22,2.6717]
[1736600778094,7.09088946,187.25,187.15,5.36]
[1736600778295,2.6717,187.23,187.19,2.6721]
[1736600778892,2.6716,187.24,187.2,2.672]
[1736600781293,2.6719,187.22,187.18,2.6724]
[1736600781800,2.6719,187.22,187.19,2.6722]
[1736600781995,9.76258946,187.23,187.19,2.6722]
[1736600783388,9.76258946,187.23,187.15,5.36]
[1736600783389,2.6719,187.22,187.16,7.09088946]
[1736600784301,7.09088946,187.23,187.18,2.6723]
[1736600784600,9.76288946,187.21,187.14,7.09088946]
[1736600784901,7.09088946,187.21,187.16,2.6726]
[1736600785096,2.6722,187.2,187.16,2.6726]
[1736600785494,7.09088946,187.21,187.17,2.6725]
[1736600786501,9.76298946,187.21,187.17,2.6725]
[1736600787308,2.6722,187.2,187.16,2.6726]
[1736600788901,7.09088946,187.19,187.17,2.6725]